Cogmind - Beta 13 @@@ ROGUE MODE // 2024.04.01 @ 22:53:17 Player: frawding Result: Destroyed by S-27 Virus with Autogun Performance ------------- Evolutions (4) 2000 Regions Visited (8) 1600 Robots Destroyed (73) 365 Value Destroyed (1625) 1625 Prototype IDs (2) 40 Alien Tech Used (0) 0 Bonus (94) 94 TOTAL SCORE: 5724 Bonus ------- High Alert Combat Kills 74 Follower Combat Kills 20 Cogmind --------- Core Integrity 0/850 Matter 291/300 Energy 98/100 System Corruption 6% Temperature Cool (0) Movement Core (50) Location -6/Lower Caves Parts ------- > --- POWER (2) -------- (None) > --- PROPULSION (3) --- (None) > --- UTILITY (7) ------ (None) > --- WEAPON (3) ------- (None) > --- INVENTORY (5) ---- Plasma Rifle Improved Proton Missile Launcher Peak State ------------ > --- POWER ------------ Enhanced Nuclear Core > --- PROPULSION ------- Airjet Airjet Airjet > --- UTILITY ---------- Small Storage Unit Advanced Targeting Computer Advanced Targeting Computer Improved Light Armor Plating > --- WEAPON ----------- Assault Cannon Assault Cannon Assault Cannon > --- INVENTORY -------- Compact Wheel Compact Wheel Improved Sensor Array Flak Cannon Flak Cannon Flak Cannon Mining Claw [Rating: 34] Favorites ----------- Power Improved Ion Engine Engine Improved Ion Engine Power Core Fusion Compressor Propulsion Wheel Wheel Wheel Hover Unit Airjet Flight Unit Flight Unit Utility Advanced Targeting Computer Device Seismic Detector Storage Small Storage Unit Processor Advanced Targeting Computer Protection Improved Light Armor Plating Weapon Assault Cannon Energy Gun Particle Gun Ballistic Gun Assault Rifle Ballistic Cannon Assault Cannon Launcher Guided EMP Blaster Slashing Weapon Scythe Build | -11 -10 -9 -8 -7 -7 -6 -6 -6 ------- Run | Yrd Mat Mat Mat Fac Low Fac Low Low Slots Evolved 8 | . . 2 2 2 . 2 . . Power 1 | . . . . . . 1 . . Propulsion 1 | . . 1 . . . . . . Utility 5 | . . 1 1 2 . 1 . . Weapon 1 | . . . 1 . . . . . Parts Attached 94 | 7 15 20 37 1 2 7 5 . Power 10 | 1 2 3 2 . . 2 . . Engine 8 | 1 2 3 1 . . 1 . . Core 2 | . . . 1 . . 1 . . Reactor . | . . . . . . . . . Propulsion 40 | 2 5 7 23 1 1 1 . . Treads . | . . . . . . . . . Leg . | . . . . . . . . . Wheel 24 | 2 2 6 13 . . 1 . . Hover 9 | . 2 1 6 . . . . . Flight 7 | . 1 . 4 1 1 . . . Utility 18 | 2 1 4 6 . . 3 2 . Device 9 | 2 . 2 . . . 3 2 . Storage 3 | . 1 . 2 . . . . . Processor 3 | . . 1 2 . . . . . Hackware . | . . . . . . . . . Protection 3 | . . 1 2 . . . . . Artifact . | . . . . . . . . . Weapon 26 | 2 7 6 6 . 1 1 3 . Energy Gun 6 | . 3 1 . . . . 2 . Energy Cannon . | . . . . . . . . . Ballistic Gun 6 | 2 3 . 1 . . . . . Ballistic Cannon 10 | . . 5 5 . . . . . Launcher 1 | . . . . . . . 1 . Special Weapon . | . . . . . . . . . Impact Weapon . | . . . . . . . . . Slashing Weapon 3 | . 1 . . . 1 1 . . Piercing Weapon . | . . . . . . . . . Special Melee Weapon . | . . . . . . . . . Unidentified Prototypes 2 | . . . 1 . . . 1 . Parts Lost 26 | . 3 2 10 . 3 . 7 1 Power 2 | . 1 . 1 . . . . . Propulsion 12 | . 2 1 6 . 2 . 1 . Utility 7 | . . 1 1 . 1 . 3 1 Weapon 5 | . . . 2 . . . 3 . Highest Loss Streak 4 | . 2 1 4 . 3 . 3 1 To Critical Strikes . | . . . . . . . . . Average Slot Usage (%) 64 | . 77 86 89 29 21 34 22 3 Engine 5 | . 4 11 7 . . . . . Wheel 12 | . 15 27 11 . . 3 . . Hover 3 | . . 2 10 . . . . . Flight 1 | . 5 . . 6 . . . . Device 9 | . 25 11 . . . 9 10 3 Storage 5 | . 2 11 9 7 . . . . Processor 8 | . . 1 16 15 15 13 7 . Protection 2 | . . . 8 . . . . . Energy Gun 2 | . 3 5 . . . . . . Ballistic Gun 3 | . 16 . 2 . . . . . Ballistic Cannon 8 | . . 14 22 . . . . . Slashing Weapon 1 | . . . . . 4 5 3 . Naked Turns 19 | . . . . . . . . 19 Heaviest Build 48 | 9 12 26 48 5 5 11 15 1 Greatest Support 48 | 20 20 32 48 4 4 10 10 3 Greatest Overweight (x) 9 | . 1 1 9 1 1 1 4 . Average Overweight (x) . | . . . . 1 . . . . Largest Inventory Capacity 15 | 5 8 8 15 8 8 5 5 5 Average Capacity 6 | 5 5 8 8 8 5 5 5 5 Most Carried 9 | 3 8 8 9 8 7 5 5 2 Average Carried 5 | 1 4 6 7 6 4 4 4 2 Final Capacity 8 | 5 8 8 8 8 5 5 5 5 Final Carried 8 | 3 5 8 7 7 4 5 2 2 Class Distribution -------------------- 70% | Mutant 17% | Gunner 10% | Scavenger-Mutant Dominant Class ---------------- Mutant | -10/Materials Mutant | -9/Materials Gunner | -8/Materials Mutant | -7/Factory Mutant | -7/Lower Caves Mutant | -6/Factory Mutant | -6/Lower Caves Mutant | -6/Lower Caves Resources | -11 -10 -9 -8 -7 -7 -6 -6 -6 ----------- Run | Yrd Mat Mat Mat Fac Low Fac Low Low Matter Collected 2188 | 348 368 528 545 . 49 40 310 . Remotely . | . . . . . . . . . Salvage Created 1975 | 150 554 717 465 . 49 40 . . Parts 140 | 12 36 50 35 . 4 3 . . Haulers Intercepted 1 | . 1 . . . . . . . Recyclers Shooed 1 | . 1 . . . . . . . Parts Field Recycled . | . . . . . . . . . Retrieved Matter . | . . . . . . . . . Parts Self-Destructed 6 | . . . . . 4 . 2 . Prevented . | . . . . . . . . . Kills | -11 -10 -9 -8 -7 -7 -6 -6 -6 ------- Run | Yrd Mat Mat Mat Fac Low Fac Low Low Combat Hostiles Destroyed 43 | 1 9 19 12 . 2 . . . Melee 2 | . . . . . 2 . . . Guns 16 | 1 9 6 . . . . . . Cannons 25 | . . 13 12 . . . . . Classes Destroyed 9 | 3 4 2 . . . . . . Worker 11 | 1 4 3 2 . . 1 . . Builder 4 | . . 1 3 . . . . . Tunneler 5 | 4 . . . . . 1 . . Hauler 1 | . 1 . . . . . . . Recycler 2 | . 1 . 1 . . . . . Watcher 7 | . 2 3 2 . . . . . Swarmer 15 | . 3 4 6 . 2 . . . Grunt 17 | 1 6 7 3 . . . . . Sentry 11 | . . 8 3 . . . . . Best Kill Streak 7 | 5 3 5 7 . 1 2 . . Combat Bots Only 6 | 1 3 4 6 . 1 . . . Max Kills in Single Turn 2 | 1 2 2 2 . 1 1 . . Gunslinging . | . . . . . . . . . Exploded . | . . . . . . . . . Melee 1 | . . . . . 1 . . . Uniques/NPCs Destroyed . | . . . . . . . . . Combat | -11 -10 -9 -8 -7 -7 -6 -6 -6 -------- Run | Yrd Mat Mat Mat Fac Low Fac Low Low Hostile Shots Fired 559 | 4 67 81 149 20 53 6 161 18 Missed 208 | 1 26 30 37 7 21 2 77 7 Damage Taken 4553 | 32 500 622 1423 175 480 23 1126 172 Core 2016 | 10 134 144 314 149 408 . 707 150 Absorbed by Shields . | . . . . . . . . . Regen/Repaired (Parts) 79 | . . 79 . . . . . . Core Remaining (%) 52 | 96 42 64 42 . 20 . . . Volleys Fired 203 | 13 71 72 46 . . . 1 . Largest 3 | 2 2 2 3 . . . 2 . Hottest 132 | 40 80 130 132 . . . 130 . Shots Fired 350 | 26 106 124 92 . . . 2 . Gun 201 | 26 106 56 11 . . . 2 . Cannon 149 | . . 68 81 . . . . . Launcher . | . . . . . . . . . Special . | . . . . . . . . . Kinetic 279 | 26 93 68 92 . . . . . Thermal 70 | . 13 56 . . . . 1 . Explosive . | . . . . . . . . . Electromagnetic 1 | . . . . . . . 1 . Robot Hit Streak 11 | 6 11 9 8 . . . 9 . Robot Miss Streak 14 | 2 6 14 5 . . . 1 . Penetration Max . | . . . . . . . . . Secondary Targets 4 | . 3 1 . . . . . . Max Gunslinging Chain 1 | . 1 1 . . . . . . Shots Hit Robots 208 | 14 60 75 50 . 1 7 1 . Core Hits 105 | 7 26 47 22 . 2 1 . . Critical Kills . | . . . . . . . . . Critical Parts Destroyed 1 | . 1 . . . . . . . Critical Strikes 8 | . 1 4 3 . . . . . Burn 4 | . . 4 . . . . . . Destroy 1 | . 1 . . . . . . . Blast 3 | . . . 3 . . . . . Melee Attacks 30 | . 4 . . . 12 14 . . Impact . | . . . . . . . . . Slashing 30 | . 4 . . . 12 14 . . Piercing . | . . . . . . . . . Sneak Attacks 4 | . . . . . . 4 . . Combat Hostiles . | . . . . . . . . . Follow-up Attacks . | . . . . . . . . . Damage Inflicted 3936 | 172 774 1436 1199 . 30 304 21 . Guns 1642 | 172 768 547 134 . . . 21 . Cannons 1954 | . . 889 1065 . . . . . Explosions . | . . . . . . . . . Melee 328 | . . . . . 24 304 . . Ramming 12 | . 6 . . . 6 . . . Kinetic 2947 | 172 687 889 1199 . . . . . Thermal 649 | . 81 547 . . . . 21 . Explosive . | . . . . . . . . . Electromagnetic . | . . . . . . . . . Impact . | . . . . . . . . . Slashing 328 | . . . . . 24 304 . . Piercing . | . . . . . . . . . Highest Corruption 6 | . 1 . . . . . 6 6 Average Corruption 3 | . 1 . . . . . 5 6 Corruption Purged . | . . . . . . . . . Corruption Blocked . | . . . . . . . . . Effects 8 | . . . . . . . 6 2 Message Errors 1 | . . . . . . . 1 . Matter Fused 3 | . . . . . . . 2 1 Heat Flow Errors 1 | . . . . . . . . 1 Energy Discharges 2 | . . . . . . . 2 . Data Loss (minor) 1 | . . . . . . . 1 . Overload Shots . | . . . . . . . . . Overflow Damage 130 | . . 9 38 . . 83 . . Projectiles 47 | . . 9 38 . . . . . Explosions . | . . . . . . . . . Melee 83 | . . . . . . 83 . . Knockbacks 23 | . . 9 14 . . . . . Impact . | . . . . . . . . . Kinetic 20 | . . 9 11 . . . . . Secondary 3 | . . . 3 . . . . . Self-Inflicted Damage 6 | . 3 . . . 3 . . . Shots . | . . . . . . . . . Rammed 3 | . 1 . . . 1 . 1 . Targets Rammed 3 | . 1 . . . 1 . 1 . Kicked . | . . . . . . . . . Crushed . | . . . . . . . . . Highest Temperature 469 | 6 42 337 469 . . . 18 189 Average Temperature 107 | 6 13 108 125 . . . 12 96 Received Heat Transfer 1353 | 18 267 195 684 . 36 . 153 . Effects 7 | . . 2 5 . . . . . Shutdowns 1 | . . . 1 . . . . . Energy Bleed 2 | . . 1 1 . . . . . Interference 1 | . . 1 . . . . . . Short Circuit 1 | . . . 1 . . . . . Damage (minor) 2 | . . . 2 . . . . . Siege Activations . | . . . . . . . . . Robots Corrupted . | . . . . . . . . . Combat Hostiles . | . . . . . . . . . Parts Fried . | . . . . . . . . . Impact Corruptions . | . . . . . . . . . Robots Melted . | . . . . . . . . . Combat Hostiles . | . . . . . . . . . Parts Melted 3 | . . 3 . . . . . . Heat Transferred 1790 | . 186 1554 . . . . 50 . Parts Sabotaged . | . . . . . . . . . Parts Stolen . | . . . . . . . . . Parts Stripped . | . . . . . . . . . Power Chain Reactions . | . . . . . . . . . Alert | -11 -10 -9 -8 -7 -7 -6 -6 -6 ------- Run | Yrd Mat Mat Mat Fac Low Fac Low Low Peak Influence 614 | 45 333 614 539 180 . 169 . . Initial 195 | . 29 104 195 165 . 144 . . Average 256 | 20 192 307 347 171 . 150 . . Maximum Alert Level 2 | . 1 2 2 . . . . . Low Security (%) 38 | 100 47 22 1 100 . 100 . . Level 1 46 | . 52 54 70 . . . . . Level 2 14 | . . 23 27 . . . . . Level 3 . | . . . . . . . . . Level 4 . | . . . . . . . . . Level 5 . | . . . . . . . . . High Security . | . . . . . . . . . Max Security . | . . . . . . . . . Squads Dispatched 8 | . 2 3 2 1 . . . . Investigation 5 | . 1 2 1 1 . . . . Extermination . | . . . . . . . . . Reinforcement 3 | . 1 1 1 . . . . . Assault . | . . . . . . . . . Garrison . | . . . . . . . . . Intercept . | . . . . . . . . . Searches Triggered . | . . . . . . . . . Construction Impeded 1 | . . . 1 . . . . . Haulers Reinforced . | . . . . . . . . . Active Scanning Responses . | . . . . . . . . . Cargo Convoy Interrupts . | . . . . . . . . . Stealth | -11 -10 -9 -8 -7 -7 -6 -6 -6 --------- Run | Yrd Mat Mat Mat Fac Low Fac Low Low Distress Signals 5 | . 1 2 2 . . . . . Communications Jammed . | . . . . . . . . . Distress Signals . | . . . . . . . . . Times Spotted 109 | 1 23 25 26 1 8 3 13 9 Peak Tracking Total 11 | 1 5 6 6 1 6 1 7 11 Tactical Retreats 16 | . 3 2 2 . 2 . 7 . Traps | -11 -10 -9 -8 -7 -7 -6 -6 -6 ------- Run | Yrd Mat Mat Mat Fac Low Fac Low Low Traps Triggered 4 | . 2 1 1 . . . . . Indirectly . | . . . . . . . . . Trap Hack Attempts . | . . . . . . . . . Triggered . | . . . . . . . . . Disarmed . | . . . . . . . . . Reprogrammed . | . . . . . . . . . Reused . | . . . . . . . . . Traps Extracted . | . . . . . . . . . Installed . | . . . . . . . . . Triggered 2 | . . . . . . . . 2 Machines | -11 -10 -9 -8 -7 -7 -6 -6 -6 ---------- Run | Yrd Mat Mat Mat Fac Low Fac Low Low Machines Disabled 8 | . 1 2 5 . . . . . Max in Single Turn 1 | . 1 1 1 . . . . . Machines Repaired . | . . . . . . . . . Machines Dismantled . | . . . . . . . . . Machines Sabotaged . | . . . . . . . . . Overloaded Fab Kills . | . . . . . . . . . Hacking | -11 -10 -9 -8 -7 -7 -6 -6 -6 --------- Run | Yrd Mat Mat Mat Fac Low Fac Low Low Machines Accessed 14 | . 2 6 4 1 . 1 . . Terminals 11 | . 2 4 3 1 . 1 . . Fabricators . | . . . . . . . . . Repair Stations 2 | . . 2 . . . . . . Recycling Units . | . . . . . . . . . Scanalyzers 1 | . . . 1 . . . . . Garrison Access . | . . . . . . . . . Total Hacks 35 | . 5 19 7 2 . 2 . . Successful 18 | . 3 10 5 . . . . . Failed 17 | . 2 9 2 2 . 2 . . Catastrophic 3 | . . 1 2 . . . . . Database Lockouts . | . . . . . . . . . Manual 2 | . . 2 . . . . . . Terminals 23 | . 5 9 5 2 . 2 . . Fabricators . | . . . . . . . . . Repair Stations 10 | . . 10 . . . . . . Recycling Units . | . . . . . . . . . Scanalyzers 2 | . . . 2 . . . . . Garrison Access . | . . . . . . . . . Terminal Hacks 10 | . 3 3 4 . . . . . Record 2 | . 1 . 1 . . . . . Robot Analysis 1 | . . 1 . . . . . . Branch Access Points 1 | . . . 1 . . . . . Emergency Access Points 1 | . . 1 . . . . . . Alert Level 2 | . 1 . 1 . . . . . Locate Traps 1 | . 1 . . . . . . . Registered Components 1 | . . . 1 . . . . . Zone Layout 1 | . . 1 . . . . . . Fabricator Hacks . | . . . . . . . . . Repair Station Hacks 7 | . . 7 . . . . . . Scan Component 4 | . . 4 . . . . . . Repair 3 | . . 3 . . . . . . Recycling Unit Hacks . | . . . . . . . . . Scanalyzer 1 | . . . 1 . . . . . Insert Component 1 | . . . 1 . . . . . Garrison Access Hacks . | . . . . . . . . . Unauthorized Hacks . | . . . . . . . . . Terminals . | . . . . . . . . . Fabricators . | . . . . . . . . . Repair Stations . | . . . . . . . . . Recycling Units . | . . . . . . . . . Scanalyzers . | . . . . . . . . . Garrison Access . | . . . . . . . . . Data Cores Recovered . | . . . . . . . . . Used . | . . . . . . . . . Hacking Detections 9 | . 1 6 1 1 . . . . Full Trace Events 5 | . 1 3 . 1 . . . . Feedback Events . | . . . . . . . . . Feedback Blocked . | . . . . . . . . . Robot Schematics Acquired . | . . . . . . . . . Robots Built . | . . . . . . . . . Authchips . | . . . . . . . . . Time . | . . . . . . . . . Total Robot Build Rating . | . . . . . . . . . Part Schematics Acquired . | . . . . . . . . . Parts Built . | . . . . . . . . . Authchips . | . . . . . . . . . Time . | . . . . . . . . . Total Part Build Rating . | . . . . . . . . . Parts Repaired 2 | . . 2 . . . . . . Time 71 | . . 71 . . . . . . Parts Recycled . | . . . . . . . . . Recycled Matter . | . . . . . . . . . Retrieved Matter . | . . . . . . . . . Retrieved Components . | . . . . . . . . . Parts Scanalyzed 1 | . . . 1 . . . . . Part Schematics Acquired . | . . . . . . . . . Parts Damaged 1 | . . . 1 . . . . . Bothacking | -11 -10 -9 -8 -7 -7 -6 -6 -6 ------------ Run | Yrd Mat Mat Mat Fac Low Fac Low Low Used RIF Installer . | . . . . . . . . . Robots Hacked . | . . . . . . . . . Non-combat . | . . . . . . . . . Combat . | . . . . . . . . . Robot Hacks Applied . | . . . . . . . . . Relay Couplers Released . | . . . . . . . . . Fabnet Peak Effective % . | . . . . . . . . . Robots Rewired . | . . . . . . . . . Allies Hacked . | . . . . . . . . . Hacks Repelled . | . . . . . . . . . Allies | -11 -10 -9 -8 -7 -7 -6 -6 -6 -------- Run | Yrd Mat Mat Mat Fac Low Fac Low Low Total Allies 1 | . . . . . 1 . . . Largest Group 1 | . . . . . 1 . . . Highest-Rated Group 146 | . . . . . 146 . . . Highest-Rated Ally 146 | . . . . . 146 . . . Total Orders . | . . . . . . . . . Ally Attacks 1 | . . . . . 1 . . . Total Damage 21 | . . . . . 21 . . . Kills 1 | . . . . . 1 . . . Allies Corrupted . | . . . . . . . . . Allies Melted . | . . . . . . . . . Intel | -11 -10 -9 -8 -7 -7 -6 -6 -6 ------- Run | Yrd Mat Mat Mat Fac Low Fac Low Low Robot Analysis Total 1 | . . 1 . . . . . . Derelict Logs Recovered 3 | . . . . . 2 . 1 . Drone Launches . | . . . . . . . . . Drone Recoveries . | . . . . . . . . . Exploration | -11 -10 -9 -8 -7 -7 -6 -6 -6 ------------- Run | Yrd Mat Mat Mat Fac Low Fac Low Low Turns Passed 3787 | 121 662 816 897 261 220 289 471 50 Spaces Moved 3449 | 86 661 599 637 206 198 323 639 100 Core 1219 | 26 . . 38 132 168 117 638 100 Treads . | . . . . . . . . . Legs . | . . . . . . . . . Wheels 1514 | 60 377 522 348 . . 206 1 . Hover 347 | . 26 77 244 . . . . . Flight 369 | . 258 . 7 74 30 . . . Fastest Speed 40 | 50 40 56 90 100 40 50 50 50 Average Speed 77 | 70 63 80 108 107 48 69 69 50 Slowest Speed 500 | 80 120 105 500 120 100 95 250 50 Overloaded Moves . | . . . . . . . . . Propulsion Burnouts . | . . . . . . . . . Robots Hopped . | . . . . . . . . . Cave-ins Triggered . | . . . . . . . . . Exploration Rate (%) 36 | 6 87 55 51 4 15 5 80 24 Regions Visited 8 Branch Regions 3 Pre-discovered Areas . | . . . . . . . . . Known Exits Taken . | . . . . . . . . . Unknown Exits Taken 8 | 1 1 1 1 1 1 1 1 . Scrap Searched 3 | . . . . . . . 3 . Spaces Dug 2 | . 2 . . . . . . . Terrain Destroyed 26 | . 2 5 19 . . . . . Melee 2 | . 2 . . . . . . . Projectile 24 | . . 5 19 . . . . . AOE . | . . . . . . . . . Terrain Rammed . | . . . . . . . . . Walls Destroyed . | . . . . . . . . . Machines Disabled . | . . . . . . . . . Actions | -11 -10 -9 -8 -7 -7 -6 -6 -6 --------- Run | Yrd Mat Mat Mat Fac Low Fac Low Low Total 4175 | 119 796 817 769 248 296 364 666 100 Wait 244 | 4 9 89 9 31 83 4 15 . Move 3441 | 85 660 598 636 205 197 322 638 100 Hop . | . . . . . . . . . Pick Up 75 | 10 15 18 17 6 1 7 1 . Fast Attach 20 | . 4 4 6 . . 4 2 . Attach 52 | 7 11 10 15 1 2 3 3 . Detach 23 | . 6 6 6 . . 3 2 . Swap 22 | . . 6 16 . . . . . Drop 62 | . 15 14 18 5 . 7 3 . Fire 203 | 13 71 72 46 . . . 1 . Melee 30 | . 4 . . . 12 14 . . Ram 3 | . 1 . . . 1 . 1 . Kick . | . . . . . . . . . Crush . | . . . . . . . . . Escape Stasis . | . . . . . . . . . Rewire . | . . . . . . . . . Trap . | . . . . . . . . . Miscellaneous . | . . . . . . . . . Route ------- -11/Scrapyard -10/Materials (discovered 4 exits: *Mat x2 / [*Min x2]) -9/Materials (discovered 3 exits: *Mat / [*Min] / [*Sto]) -8/Materials (discovered 2 exits: *Fac x2) -7/Factory -7/Lower Caves -6/Factory -6/Lower Caves -6/Lower Caves History --------- Turn | Location | Event 2 | -11/Scrapyard | Met Revision 17 51 | -11/Scrapyard | Discovered new exit (range 8) 122 | -11/Scrapyard | Entered Materials 122 | -10/Materials | Discovered new exit (range 14) 211 | -10/Materials | Discovered new exit (range 16) 292 | -10/Materials | Discovered new exit (range 7) 300 | -10/Materials | Build established: Mutant 559 | -10/Materials | Discovered new exit (range 3) 654 | -10/Materials | Core integrity fell below 50% 784 | -10/Materials | Entered another Materials area 784 | -9/Materials | Evolved 2 slots: Propulsion x1, Utility x1 1076 | -9/Materials | Build established: Scavenger-Mutant 1206 | -9/Materials | Discovered new exit (range 11) 1299 | -9/Materials | Discovered new exit (range 12) 1352 | -9/Materials | Repaired Flak Cannon 1432 | -9/Materials | Build established: Mutant 1486 | -9/Materials | Discovered new exit (range 18) 1594 | -9/Materials | Repaired Wheel 1600 | -9/Materials | Entered another Materials area 1600 | -8/Materials | Evolved 2 slots: Utility x1, Weapon x1 1804 | -8/Materials | Discovered new exit (range 8) 1982 | -8/Materials | Build established: Gunner 2038 | -8/Materials | Discovered new exit (range 5) 2409 | -8/Materials | Lost 4 parts (1p2n1u) 2468 | -8/Materials | Core integrity fell below 50% 2496 | -8/Materials | Lost 3 parts (2n1w) 2497 | -8/Materials | Entered Factory 2497 | -7/Factory | Evolved 2 slots: Utility x2 2677 | -7/Factory | Build established: Mutant 2746 | -7/Factory | Discovered new exit (range 10) 2758 | -7/Factory | Entered Lower Caves 2795 | -7/Lower Caves | Core integrity fell below 50% 2809 | -7/Lower Caves | Learned 4 Factory zone layouts 2824 | -7/Lower Caves | Lost 3 parts (2n1u) 2963 | -7/Lower Caves | NK-0LA showed up to help 2965 | -7/Lower Caves | NK-0LA revealed a hidden path 2970 | -7/Lower Caves | Learned Factory garrison access intel 2978 | -7/Lower Caves | Entered Factory 2978 | -6/Factory | Evolved 2 slots: Power x1, Utility x1 2980 | -6/Factory | Loaded intel: 4 garrison access locations 3252 | -6/Factory | Discovered new exit (range 14) 3267 | -6/Factory | Entered Lower Caves 3269 | -6/Lower Caves | Attracted the attention of an 0b10 checkpoint 3308 | -6/Lower Caves | Lost 3 parts (1n2u) 3395 | -6/Lower Caves | Learned Factory stockpile data 3535 | -6/Lower Caves | Attracted the attention of an 0b10 base 3593 | -6/Lower Caves | Core integrity fell below 50% 3700 | -6/Lower Caves | Core integrity fell below 20% 3734 | -6/Lower Caves | Discovered new exit (range 9) 3738 | -6/Lower Caves | Entered another Lower Caves area 3788 | -6/Lower Caves | Destroyed by S-27 Virus with Autogun Last Messages --------------- 03629_ Gui. EMP Blaster destroyed. 03632_ P-60 Hacker resets S-27 Virus, system corruption cleaned. 03633_ Lightning Gun destroyed. 03637_ System corrupted: Matter fused (-6). 03642_ 19-N8T(b): "Have you seen a Researcher around here? I tracked it to these parts before it suddenly disappeared. I wonder what it's up to, and all by itself too..." 03661_ P-60 Hacker hacks 62-SJG(S), rebooting. 03676_ S2K#FVYWVZG&MQQAXFZLFG/FFNHUJV SEZ 03686_ Slammed into P-60 Hacker. 03696_ Acquired 40 matter. 03728_ System corrupted: Matter fused (-8). 03734_ EXIT=FOUND LOCATION=UNKNOWN GOAL=ESCAPE 03756_ System corrupted: Heat flow error (+226). 03769_ Triangulator destroyed. 03785_ System corrupted: Matter fused (-6). Map ----- +----------------------------------------------------+ | ???????????????????????????????????????????? ?? | | ????????????????????????????????????????????? ?? | | ?????????????????????????????????????????????? ## | | ??????????????????????????????????????????????? | | ????????????????????????????????????????#####??# | | ????????????????????????????????????????#""""??# | | ????????????????????????????????????????? ??# | | ?????????????????????????????????????????? ??/ | | ????????????????????????????????????????###//### | | ????????????????????????????????????????# # | | ????????????????????????????????????????# # | | ??????????????????????????????????????# ## ## | | ??????????????????????????????????????# | | ??????????????????????????????????????########### | | ????????????????????????????????????????????## | | ??????????????????????????##???????????????## | | ?????????????????????????? ??????????????## | | ?????????????????????????? #????# ######## | | ?????????????????????????? #??????# | | ?????????????????????????? #???# | | ?????????????????????????? #????# ####### ## | | ?????????????????????????? #????????###### ### | | ????????????????????????## #????????# ##?# | | ?????????????######????## ##??####?# ##??# | | ????????????## ???# ??? #?## #???? | | ?????????? ### @#????# #??### ##???? | | ????????????????# ##???# #?###### #????? | | ??????????? ## ##??# ### ### ## | | ??????????? s s #??# ## | | ??????????? s #??# # ### # | | ??????????? ### %[ #??# #?? ## | | ????????????????# #### #####?? % ##? | | ????????????????# #######? #?? | | ????????????????### ###?? | | ??????????????????## ### ######? #???? | | ???????????????????##### # #?# #??????# #???? | | ???????????????????????# # #?## #??????? #???? | | ??????????????????????? #??# ##??????? #???? | | ?????????????????????? ??## ##???????? #???? | | ?????????????????????## ???###????????? ???? | | ??????????????????????# ## ???????????????? ???? | | ??????????????????????# #?? ????????????????????? | | ??????????????????????# ???#????????????????????? | | ??????????????????????# ????????????????????????? | | ??????????????????????# ????????????????????????? | | ?????????????????????? ?????????????????????????? | | ?????????????????????????????????????????????????? | | ?????????????????????????????????????????????????? | | ?????????????????????????????????????????????????? | | ?????????????????????????????????????????????????? | +----------------------------------------------------+ Best States ------------- Heat Dissipation 38 Energy Generation 12 Energy Capacity 265 Matter Stores 300 Matter Capacity 300 Sight Range 18 Terrain Scan Range 20 Terrain Scan Density 10 Armor Coverage 300 Evasion (%) 62 Targeting Accuracy 16 Kinecelleration 30 Item Schematics ----------------- None Robot Schematics ------------------ None Fabricated ------------ Nothing Alien Tech Used ----------------- None Achievements -------------- Fist Fight Made in Tau Ceti IV More Dakka Please Oops Challenges ------------ None Game ------ Seed LightVortexCleaver Manual? 0 Play Time 01:06:28 Cumulative 4.7 hours Start 2024.04.01 @ 21:38:42 End 2024.04.01 @ 22:53:17 Sessions 1 Manual Loads 0 Difficulty Rogue Special Mode None Game No. 3 Rogue 3 Adventurer 0 Explorer 0 Win Type - Total 0 Types 0/0/0/0/0/0/0/0/0 Lore% 6 Gallery% 9 Achievement% 11 Wizard Run 0 Options --------- Layout 1 ASCII 0 Keyboard 0 Movement Mouse Keybinds 0 Fullscreen 1 Font 24/Smallcaps Map View 50x35 Zoom Use 0% Tactical HUD 1 Map Filters NONE Filters NONE Steam 1 RUN: 891ca87a-83f0-4de3-a5ff-3b563eb12f49